bitfinex-derivatives/quotes_BTCF0:USTF0_20250626
["timestamp","ask_amount","ask_price","bid_price","bid_amount"]
[1750948891556,1.98031524,107670.0,107660.0,0.18768142]
[1750948892454,1.59445828,107670.0,107660.0,0.18768142]
[1750948892958,0.99709828,107670.0,107660.0,0.18768142]
[1750948893164,1.59441828,107670.0,107660.0,0.18768142]
[1750948895463,1.59441828,107670.0,107660.0,0.00199292]
[1750948895760,1.59441828,107670.0,107660.0,0.18768142]
[1750948895952,1.59441828,107670.0,107660.0,0.00199292]
[1750948896558,1.59441828,107670.0,107660.0,0.18768132]
[1750948897664,1.59441828,107670.0,107660.0,0.00199292]
[1750948897967,1.98019354,107670.0,107660.0,0.00199292]
[1750948903075,1.98019354,107670.0,107660.0,0.18768132]
[1750948903273,0.40297526,107670.0,107660.0,0.9046066]
[1750948903571,0.001,107690.0,107660.0,2.3654962]
[1750948903874,0.0386,107710.0,107700.0,0.1856195]
[1750948904069,0.0386,107710.0,107700.0,1.11064124]
[1750948904265,0.264485,107720.0,107710.0,0.1856022]
[1750948904466,0.264485,107720.0,107710.0,0.5464022]
[1750948904762,0.62061028,107720.0,107710.0,0.54689866]
[1750948904964,0.68061028,107720.0,107710.0,0.54689866]
[1750948905269,0.68986158,107720.0,107710.0,0.54689866]
[1750948905666,1.30598686,107720.0,107710.0,0.36129646]
[1750948905866,1.70378686,107720.0,107710.0,0.00049646]
[1750948906069,1.34766158,107720.0,107710.0,0.00049646]
[1750948906273,0.9915363,107720.0,107710.0,0.00049646]
[1750948906474,1.70378686,107720.0,107710.0,0.00049646]
[1750948907169,1.34766158,107720.0,107710.0,0.00049646]
[1750948908178,1.35566158,107720.0,107710.0,0.00149646]
[1750948908766,1.71178686,107720.0,107710.0,0.00149646]
[1750948908972,1.96178686,107720.0,107710.0,0.00149646]
[1750948909167,1.96178686,107720.0,107710.0,6e-08]
[1750948909468,0.185654,107680.0,107670.0,0.3982]
[1750948909670,0.67612528,107680.0,107660.0,1.34887646]
[1750948909868,0.58089648,107670.0,107660.0,1.34887646]
[1750948910069,0.58089648,107670.0,107660.0,1.53456496]
[1750948910273,0.2247712,107670.0,107660.0,1.53456496]
[1750948910671,0.2247712,107670.0,107660.0,1.57356496]
[1750948911176,0.1856712,107670.0,107660.0,1.93884945]
[1750948911771,0.1866712,107670.0,107660.0,1.93884945]
[1750948912578,0.1866712,107670.0,107660.0,1.58272417]
[1750948912875,0.001,107670.0,107660.0,2.03679213]
[1750948913076,0.001,107670.0,107660.0,2.63679213]
[1750948913672,0.1866712,107670.0,107660.0,2.63679213]
[1750948913874,0.001,107670.0,107660.0,2.63679213]
[1750948914380,0.004,107670.0,107660.0,2.38679213]
[1750948918180,0.004,107670.0,107660.0,2.15679213]
[1750948919277,0.004,107670.0,107660.0,2.40679213]
[1750948919479,0.004,107670.0,107660.0,2.14679213]
[1750948920579,0.82035446,107690.0,107680.0,0.1856539]
[1750948920580,0.1856406,107690.0,107680.0,0.1856539]
[1750948920780,0.1858406,107690.0,107680.0,1.0548139]
[1750948920973,0.1858406,107690.0,107680.0,1.1689139]
[1750948921370,0.1858367,107690.0,107680.0,1.1689139]
[1750948921779,0.1898367,107690.0,107680.0,1.1689139]
[1750948921973,0.1968367,107690.0,107680.0,1.1689139]
[1750948922576,0.0112,107690.0,107680.0,1.58578186]
[1750948925684,0.0112,107690.0,107680.0,1.91578186]
[1750948927281,0.1968366,107690.0,107680.0,1.50822186]
[1750948927486,0.1968366,107690.0,107680.0,1.8342739]
[1750948927781,0.0112,107690.0,107680.0,2.18114186]
[1750948927974,0.0112,107690.0,107680.0,2.56114186]
[1750948930479,0.0392,107720.0,107710.0,0.1856021]
[1750948930682,0.00062822,107720.0,107710.0,1.72607006]
[1750948930880,0.00062822,107720.0,107710.0,2.11217006]
[1750948931076,0.00062822,107720.0,107710.0,2.15127006]
[1750948931571,0.01262822,107720.0,107710.0,2.15227006]
[1750948931774,0.01262822,107720.0,107710.0,1.87227006]
[1750948932270,0.23711322,107720.0,107710.0,1.3653821]
[1750948932486,0.27651322,107720.0,107710.0,1.3653821]
[1750948932680,0.05152822,107720.0,107710.0,1.44920474]
[1750948932982,0.05852822,107720.0,107710.0,1.8660727]
[1750948933182,0.05852822,107720.0,107710.0,1.9052727]
[1750948933680,0.05852822,107720.0,107710.0,2.1852727]
[1750948934070,0.01962822,107720.0,107710.0,2.1852727]
[1750948934271,0.01962822,107720.0,107710.0,2.12364318]
[1750948934482,0.01962822,107720.0,107710.0,2.12413964]
[1750948934777,0.01962822,107720.0,107710.0,2.47937808]
[1750948935279,0.01962822,107720.0,107710.0,2.12313964]
[1750948935280,0.01362822,107720.0,107710.0,2.12313964]
[1750948935482,0.01362822,107720.0,107710.0,1.7679012]
[1750948935678,0.01362822,107720.0,107710.0,2.12313964]
[1750948936278,0.01162822,107720.0,107710.0,2.18420297]
[1750948937083,0.00662822,107720.0,107710.0,1.7679012]
[1750948937382,0.00662822,107720.0,107710.0,2.18420297]
[1750948937383,0.00562822,107720.0,107710.0,2.18420297]
[1750948939086,1.0,107730.0,107720.0,0.1855849]
[1750948939379,1.0,107730.0,107720.0,1.37998667]
[1750948940080,1.0,107730.0,107720.0,0.6236849]
[1750948940281,1.005,107730.0,107720.0,1.07998667]
[1750948940481,1.052,107730.0,107720.0,1.04038667]
[1750948940883,1.2375677,107730.0,107720.0,0.5863849]
[1750948941185,1.73096947,107730.0,107720.0,1.14208]
[1750948941384,1.73096947,107730.0,107720.0,1.2876649]
[1750948941779,1.3146677,107730.0,107720.0,1.2876649]
[1750948942187,1.3146677,107730.0,107720.0,1.70396667]
[1750948942780,1.3146677,107730.0,107720.0,1.2876649]
[1750948942974,1.3146677,107730.0,107720.0,1.2875849]
[1750948943386,1.1291,107730.0,107720.0,1.6275849]
[1750948943689,1.1291,107730.0,107720.0,1.5375849]
[1750948943891,1.0907,107730.0,107720.0,1.2875849]
[1750948944087,1.0907,107730.0,107720.0,1.3254849]
[1750948944792,1.2762677,107730.0,107720.0,1.3254849]
[1750948945289,1.0907,107730.0,107720.0,1.3254849]
[1750948945486,1.0907,107730.0,107720.0,1.74178667]
[1750948945689,1.052,107730.0,107720.0,2.05178667]
[1750948945982,1.052,107730.0,107720.0,2.09038667]
[1750948946890,1.052,107730.0,107720.0,2.12778667]
[1750948947491,1.012,107730.0,107720.0,2.12778667]
[1750948948692,1.0498,107730.0,107720.0,2.12778667]
[1750948951392,1.0498,107730.0,107720.0,1.81778667]
[1750948951701,1.0498,107730.0,107720.0,0.7428849]
[1750948951900,1.0877,107730.0,107720.0,1.4836049]
[1750948952793,1.0877,107730.0,107720.0,1.4450049]
[1750948952993,1.0877,107730.0,107720.0,1.6850049]
[1750948954094,1.2732677,107730.0,107720.0,1.6470249]
[1750948954295,1.3104677,107730.0,107720.0,0.9063849]
[1750948954497,1.3104677,107730.0,107720.0,1.2870249]
[1750948955405,1.1249,107730.0,107720.0,1.2870249]
[1750948955593,1.3104677,107730.0,107720.0,1.2870249]
[1750948956797,1.0877,107730.0,107720.0,1.64235393]
[1750948958106,1.2732677,107730.0,107720.0,1.2870249]
[1750948958303,1.2732677,107730.0,107720.0,1.64235393]
[1750948958604,1.34599105,107730.0,107720.0,1.64223393]
[1750948958809,1.34599105,107730.0,107720.0,1.2869049]
[1750948959007,1.34599105,107730.0,107720.0,0.693105]
[1750948959008,1.70132008,107730.0,107720.0,0.693105]
[1750948959202,1.70132008,107730.0,107720.0,1.286825]
[1750948959696,1.34599105,107730.0,107720.0,1.286825]
[1750948960097,1.34599105,107730.0,107720.0,1.286785]
[1750948960896,1.70132008,107730.0,107720.0,1.286785]
[1750948966211,1.70132008,107730.0,107720.0,0.3608]
[1750948966413,0.1855849,107720.0,107710.0,0.54689866]
[1750948966607,0.67281393,107720.0,107710.0,0.95469646]
[1750948966807,0.67281393,107720.0,107710.0,1.14029866]
[1750948967324,1.00281393,107720.0,107710.0,1.14029866]
[1750948967516,1.00481393,107720.0,107710.0,1.14029866]
[1750948967814,0.65481393,107720.0,107710.0,1.14029866]
[1750948968018,0.69481393,107720.0,107710.0,1.14029866]
[1750948968713,1.03481393,107720.0,107710.0,1.14029866]
[1750948968913,1.03881393,107720.0,107710.0,1.14029866]
[1750948969215,0.80881393,107720.0,107710.0,1.14029866]
[1750948970815,0.99881393,107720.0,107710.0,1.14029866]
[1750948971720,0.81881393,107720.0,107710.0,1.14029866]
[1750948972215,0.4634849,107720.0,107710.0,1.14029866]
[1750948972422,0.81881393,107720.0,107710.0,1.14029866]
[1750948976824,0.2663849,107720.0,107710.0,0.54689866]
[1750948977021,0.2663849,107720.0,107710.0,1.32569866]
[1750948977912,0.62171393,107720.0,107710.0,1.32569866]
[1750948978115,0.2663849,107720.0,107710.0,1.32569866]
[1750948979818,0.2663849,107720.0,107710.0,1.36379866]
[1750948980431,0.2277849,107720.0,107710.0,2.06912769]
[1750948980623,0.2277849,107720.0,107710.0,2.10552769]
[1750948981235,0.0422,107720.0,107710.0,2.10552769]
[1750948981423,0.006,107720.0,107710.0,2.10552769]
[1750948984136,0.006,107720.0,107710.0,1.75019866]
[1750948984324,0.006,107720.0,107710.0,2.10552769]
[1750948986224,0.006,107720.0,107710.0,2.10512769]
[1750948986225,0.1915849,107720.0,107710.0,2.10512769]
[1750948986427,0.54691393,107720.0,107710.0,1.71335866]
[1750948986625,0.58661393,107720.0,107710.0,1.36335866]
[1750948986820,0.2312849,107720.0,107710.0,1.71868769]
[1750948987025,0.2312849,107720.0,107710.0,1.36335866]
[1750948987216,0.58661393,107720.0,107710.0,1.36335866]
[1750948987827,0.2312849,107720.0,107710.0,1.36335866]
[1750948990321,0.95661393,107720.0,107710.0,0.54689866]
[1750948990534,1.03381393,107720.0,107710.0,0.54689866]
[1750948990734,1.03381393,107720.0,107710.0,1.13925866]
[1750948990933,1.03381393,107720.0,107710.0,0.95365646]
[1750948991133,1.03381393,107720.0,107710.0,0.36129646]
[1750948991335,1.03381393,107720.0,107710.0,1.13925866]
[1750948991532,0.81381393,107720.0,107710.0,1.13925866]
[1750948991723,0.97381393,107720.0,107710.0,1.13925866]
[1750948992122,0.77381393,107720.0,107710.0,1.13917866]
[1750948993739,0.4184849,107720.0,107710.0,1.13917866]
[1750948993938,0.77381393,107720.0,107710.0,1.13917866]
[1750948994140,0.77381393,107720.0,107710.0,1.28433866]
[1750949000258,1.02381393,107720.0,107710.0,0.69213866]
[1750949000450,1.02381393,107720.0,107710.0,1.28421866]
[1750949000650,1.37914296,107720.0,107710.0,0.36129646]
[1750949000847,1.37914296,107720.0,107710.0,0.00049646]
[1750949001249,1.73994296,107720.0,107710.0,0.00049646]
[1750949001545,2.33186296,107720.0,107710.0,0.00049646]
[1750949006058,2.35664014,107720.0,107710.0,0.00049646]
[1750949006357,2.35663474,107720.0,107710.0,0.00049646]
[1750949009053,2.33186296,107720.0,107710.0,0.00049646]
[1750949009459,0.1856194,107700.0,107690.0,0.5464361]
[1750949009658,0.89094843,107700.0,107690.0,0.54606432]
[1750949009963,1.00844843,107700.0,107690.0,0.54606432]
[1750949010554,1.00944843,107700.0,107690.0,0.54606432]
[1750949010750,1.00944843,107700.0,107690.0,0.1856361]
[1750949011263,0.80944843,107700.0,107690.0,0.1856361]
[1750949011452,0.97944843,107700.0,107690.0,0.1856361]
[1750949011860,0.63353715,107700.0,107690.0,0.1856361]
[1750949012055,0.98886618,107700.0,107690.0,0.1856361]
[1750949012256,0.1856366,107690.0,107680.0,0.83184283]
[1750949012555,0.65006563,107690.0,107680.0,0.73901803]
[1750949012756,0.62006563,107690.0,107680.0,0.73901803]
[1750949013263,0.67006563,107690.0,107680.0,0.73901803]
[1750949013658,0.67006563,107690.0,107680.0,0.74101803]
[1750949013862,0.67006563,107690.0,107680.0,0.33380653]
[1750949014063,0.67006563,107690.0,107680.0,0.18856653]
[1750949014265,1.00006563,107690.0,107680.0,0.18856653]
[1750949014455,0.77006563,107690.0,107680.0,0.18756653]
[1750949015058,0.1856711,107670.0,107660.0,0.6917572]
[1750949015263,0.54100013,107670.0,107660.0,0.7279572]
[1750949015463,0.61670013,107670.0,107660.0,0.54228]
[1750949015759,0.61670013,107670.0,107660.0,0.7279684]
[1750949015963,0.61670013,107670.0,107660.0,0.7667684]
[1750949016165,0.61670013,107670.0,107660.0,0.6214884]
[1750949017070,0.61670013,107670.0,107660.0,0.7667684]
[1750949017368,0.58050013,107670.0,107660.0,0.7667684]
[1750949017568,0.58050013,107670.0,107660.0,0.6214884]
[1750949017963,0.58050013,107670.0,107660.0,0.7667684]
[1750949018164,0.58050013,107670.0,107660.0,0.6214884]
[1750949018364,0.2251711,107670.0,107660.0,0.7667684]
[1750949018560,0.58050013,107670.0,107660.0,0.7667684]
[1750949018968,0.58050013,107670.0,107660.0,0.6214884]
[1750949019163,0.58050013,107670.0,107660.0,0.7667684]
[1750949019670,0.58050013,107670.0,107660.0,0.3608]
[1750949019865,0.79890013,107670.0,107660.0,0.5464884]
[1750949020067,0.79890013,107670.0,107660.0,0.3608]
[1750949020267,0.3656711,107670.0,107660.0,1.23181743]
[1750949020469,0.3656711,107670.0,107660.0,1.30651743]
[1750949020669,0.18,107670.0,107660.0,1.89775743]
[1750949020969,0.1858539,107680.0,107670.0,0.1856711]
[1750949021170,0.2698533,107690.0,107680.0,0.1856539]
[1750949021370,0.3530533,107690.0,107680.0,0.6211539]
[1750949023574,0.3520533,107690.0,107680.0,0.9711539]
[1750949023769,0.3520533,107690.0,107680.0,0.9811539]
[1750949024169,0.3520533,107690.0,107680.0,0.9711539]
[1750949024467,0.3530533,107690.0,107680.0,0.9711539]
[1750949025367,0.3530533,107690.0,107680.0,1.5622339]
[1750949025567,0.1866434,107690.0,107680.0,1.5622339]
[1750949025870,0.1866434,107690.0,107680.0,1.5722339]
[1750949026370,0.1866434,107690.0,107680.0,1.2122339]
[1750949026673,0.54197243,107690.0,107680.0,1.2122339]
[1750949027474,0.54097243,107690.0,107680.0,1.2132339]
[1750949027973,0.54097243,107690.0,107680.0,1.2142339]
[1750949028277,0.3517451,107700.0,107690.0,0.1856365]
[1750949028464,0.94291095,107700.0,107690.0,0.6239365]
[1750949030475,0.94391095,107700.0,107690.0,0.6239365]
[1750949032275,0.94391095,107700.0,107690.0,0.2631365]
[1750949034078,0.45926612,107700.0,107690.0,0.6239365]
[1750949034267,0.191,107700.0,107690.0,0.97926553]
[1750949034573,0.001,107700.0,107690.0,1.01706553]
[1750949034966,0.001,107700.0,107690.0,0.6617365]
[1750949035370,0.1866193,107700.0,107690.0,0.6617365]
[1750949036177,0.1866193,107700.0,107690.0,0.67119743]
[1750949036580,0.001,107700.0,107690.0,1.40652646]
[1750949040785,0.0002,107710.0,107700.0,0.1856192]
[1750949040984,0.001,107720.0,107710.0,0.185602]
[1750949040985,0.0012,107720.0,107710.0,0.185602]
[1750949041287,0.001,107720.0,107710.0,1.37763103]
[1750949041577,0.001,107720.0,107710.0,0.912302]
[1750949041973,0.001,107720.0,107710.0,1.26763103]
[1750949042177,0.001,107720.0,107710.0,0.912302]
[1750949042377,0.001,107720.0,107710.0,1.26763103]
[1750949042577,0.006,107720.0,107710.0,1.26763103]
[1750949043679,0.008,107720.0,107710.0,1.26763103]
[1750949044579,0.008,107720.0,107710.0,0.912302]
[1750949044884,0.008,107720.0,107710.0,2.00219103]
[1750949045284,0.008,107720.0,107710.0,1.646862]
[1750949045481,0.008,107720.0,107710.0,2.00219103]
[1750949047883,0.008,107720.0,107710.0,1.646862]
[1750949048081,0.008,107720.0,107710.0,2.00219103]
[1750949048477,0.008,107720.0,107710.0,1.26763103]
[1750949048682,0.008,107720.0,107710.0,2.10207103]
[1750949048881,0.0476,107720.0,107710.0,2.10207103]
[1750949049778,0.2331849,107720.0,107710.0,2.10207103]
[1750949049983,0.2331849,107720.0,107710.0,1.77207103]
[1750949050184,0.2331849,107720.0,107710.0,0.606402]
[1750949050383,0.2717849,107720.0,107710.0,1.320762]
[1750949051490,0.65711393,107720.0,107710.0,1.2807616]
[1750949051684,0.65711393,107720.0,107710.0,0.14448]
[1750949051888,0.69711393,107720.0,107710.0,0.73436]
[1750949052290,0.1856016,107710.0,107700.0,0.75936807]
[1750949052586,0.2631016,107710.0,107700.0,1.49368807]
[1750949053092,0.0775,107710.0,107700.0,1.49368807]
[1750949053392,0.2631016,107710.0,107700.0,1.49368807]
[1750949053593,0.2641016,107710.0,107700.0,1.49368807]
[1750949053795,0.2661016,107710.0,107700.0,0.8300922]
[1750949053992,0.2661016,107710.0,107700.0,1.4199322]
[1750949054194,0.1198,107710.0,107700.0,1.4199322]
[1750949054891,0.0805,107710.0,107700.0,1.7499322]
[1750949056098,0.0805,107710.0,107700.0,2.10526123]
[1750949056294,0.0422,107710.0,107700.0,2.14176123]
[1750949056997,0.0422,107710.0,107700.0,1.81176123]
[1750949057194,0.0788,107710.0,107700.0,1.81176123]
[1750949057990,0.003,107710.0,107700.0,2.06176123]
[1750949058193,0.003,107710.0,107700.0,2.10146123]
[1750949058991,0.003,107710.0,107700.0,2.17726616]
[1750949061098,0.003,107710.0,107700.0,1.82193713]
[1750949061399,0.003,107710.0,107700.0,2.17726616]
[1750949061594,0.0408,107710.0,107700.0,2.17726616]
[1750949061907,0.003,107710.0,107700.0,2.17726616]
[1750949064008,0.003,107710.0,107700.0,2.2683011]
[1750949068606,0.0394,107710.0,107700.0,2.2683011]
[1750949069118,0.0394,107710.0,107700.0,2.17726616]
[1750949069615,0.0394,107710.0,107700.0,1.44294616]
[1750949069811,0.0394,107710.0,107700.0,2.13660616]
[1750949071211,0.0394,107710.0,107700.0,1.81927713]
[1750949071415,0.0394,107710.0,107700.0,2.17460616]
[1750949071806,0.0394,107710.0,107700.0,2.2656411]
[1750949073117,0.0394,107710.0,107700.0,2.17460616]
[1750949073512,0.0394,107710.0,107700.0,2.13656616]
[1750949073812,0.0785,107710.0,107700.0,0.85245207]
[1750949074002,0.0785,107710.0,107700.0,1.59569207]
[1750949074207,0.2641016,107710.0,107700.0,0.99637207]
[1750949074400,0.2641016,107710.0,107700.0,1.58569207]
[1750949074600,0.0785,107710.0,107700.0,1.58569207]
[1750949075911,0.2641016,107710.0,107700.0,1.58569207]
[1750949076112,0.61943063,107710.0,107700.0,0.8295322]
[1750949076416,0.61943063,107710.0,107700.0,1.4188522]
[1750949077815,0.2641016,107710.0,107700.0,1.4188522]
[1750949079007,0.2741016,107710.0,107700.0,1.4188522]
[1750949079716,0.62943063,107710.0,107700.0,1.2795254]
[1750949080613,0.2741016,107710.0,107700.0,1.2795254]
[1750949080918,0.62943063,107710.0,107700.0,1.2795254]
[1750949084912,0.61943063,107710.0,107700.0,0.5464189]
[1750949085112,0.98943063,107710.0,107700.0,0.7746989]
[1750949085310,0.75943063,107710.0,107700.0,0.7746989]
[1750949085518,0.1856189,107700.0,107690.0,0.6856422]
[1750949085717,0.72384793,107700.0,107690.0,1.4186022]
[1750949085918,0.72384793,107700.0,107690.0,1.4182422]
[1750949086317,0.72384793,107700.0,107690.0,1.3254272]
[1750949086520,0.72384793,107700.0,107690.0,0.5928272]
[1750949086817,0.72384793,107700.0,107690.0,1.1818672]
[1750949087209,0.72384793,107700.0,107690.0,1.25508026]
[1750949087422,0.72484793,107700.0,107690.0,1.25508026]
[1750949087918,0.72484793,107700.0,107690.0,1.1818672]
[1750949095519,0.35494969,107700.0,107690.0,1.1818672]
[1750949095722,0.2234189,107700.0,107690.0,1.84719623]
[1750949095917,0.2234189,107700.0,107690.0,1.57419623]
[1750949096618,0.2234189,107700.0,107690.0,1.2188672]
[1750949096919,0.2600189,107700.0,107690.0,1.2188672]
[1750949098817,0.2600189,107700.0,107690.0,1.2583672]
[1750949099023,0.2234189,107700.0,107690.0,1.2583672]
[1750949099424,0.0378,107700.0,107690.0,1.2583672]
[1750949099923,0.2234189,107700.0,107690.0,1.2583672]
[1750949100320,0.0378,107700.0,107690.0,1.2583672]
[1750949100720,0.2234189,107700.0,107690.0,1.2583672]
[1750949101028,0.0378,107700.0,107690.0,1.2583672]
[1750949101525,0.2234188,107700.0,107690.0,1.2583672]
[1750949101923,0.0378,107700.0,107690.0,1.2583672]
[1750949103424,0.2234189,107700.0,107690.0,1.2583672]
[1750949104023,0.0002,107710.0,107700.0,0.1856189]
[1750949104220,0.0012,107720.0,107710.0,0.1856016]
[1750949104424,0.001,107720.0,107710.0,1.2214416]
[1750949104720,0.54191343,107720.0,107710.0,1.2214416]
[1750949104920,0.58181343,107720.0,107710.0,1.2214416]
[1750949105120,0.62181343,107720.0,107710.0,0.7742016]
[1750949105321,0.1856017,107710.0,107700.0,0.7589148]
[1750949105527,0.64083073,107710.0,107700.0,1.444671]
[1750949105722,0.67903073,107710.0,107700.0,1.444671]
[1750949106025,0.68003073,107710.0,107700.0,1.444671]
[1750949106225,0.68003073,107710.0,107700.0,1.444631]
[1750949106629,0.68303073,107710.0,107700.0,1.444631]
[1750949107731,0.68303073,107710.0,107700.0,1.51784406]
[1750949107934,0.62303073,107710.0,107700.0,0.5928077]
[1750949108229,0.94303073,107710.0,107700.0,1.1813677]
[1750949108626,0.5877017,107710.0,107700.0,1.1813677]
[1750949108830,0.74303073,107710.0,107700.0,1.1813677]
[1750949109635,0.97303073,107710.0,107700.0,1.1813677]
[1750949110130,0.73303073,107710.0,107700.0,1.1813677]
[1750949110330,0.94303073,107710.0,107700.0,1.1812477]
[1750949110534,0.94303073,107710.0,107700.0,0.5928077]
[1750949112833,0.1856189,107700.0,107690.0,0.71248379]
[1750949113131,1.30454793,107700.0,107690.0,0.1856195]
[1750949113325,1.34374793,107700.0,107690.0,0.1856195]
[1750949120739,0.1856534,107680.0,107670.0,2.29267489]
[1750949120939,0.55098243,107680.0,107670.0,2.29230311]
[1750949121141,0.93668243,107680.0,107670.0,0.21632939]
[1750949121337,0.97548243,107680.0,107670.0,0.1856706]
[1750949121538,1.33628243,107680.0,107670.0,0.1856706]
[1750949121739,0.1856706,107670.0,107660.0,0.74946059]
[1750949121941,0.61669963,107670.0,107660.0,0.38866059]
[1750949122442,0.61669963,107670.0,107660.0,0.3154112]
[1750949122638,0.62669963,107670.0,107660.0,0.38866059]
[1750949123234,0.62669963,107670.0,107660.0,0.3154112]
[1750949124240,0.62669963,107670.0,107660.0,0.1856879]
[1750949124241,0.76596083,107670.0,107660.0,0.1856879]
[1750949127439,0.1856879,107660.0,107650.0,1.97234425]
[1750949127638,0.1856879,107660.0,107650.0,1.08246992]
[1750949127846,0.2227879,107660.0,107650.0,1.67050992]
[1750949128247,0.57811693,107660.0,107650.0,1.63260992]
[1750949128438,0.2227879,107660.0,107650.0,1.63260992]
[1750949129044,0.2227879,107660.0,107650.0,1.62413728]
[1750949129244,0.2227879,107660.0,107650.0,1.55088789]
[1750949129543,0.2327879,107660.0,107650.0,1.55088789]
[1750949129746,0.2327879,107660.0,107650.0,1.58768789]
[1750949130049,0.58811693,107660.0,107650.0,0.58430889]
[1750949130347,0.62491693,107660.0,107650.0,1.32017409]
[1750949130548,0.62491693,107660.0,107650.0,1.32117409]
[1750949131547,0.62491693,107660.0,107650.0,0.59013409]
[1750949131850,0.62491693,107660.0,107650.0,1.17805409]
[1750949132046,0.62491693,107660.0,107650.0,1.21645409]
[1750949133145,0.01,107660.0,107650.0,1.29386312]
[1750949133344,0.2965189,107700.0,107690.0,0.1856362]
[1750949133545,0.28491978,107700.0,107690.0,0.5464362]
[1750949133749,0.64024881,107700.0,107690.0,0.3988]
[1750949133951,0.61624793,107700.0,107690.0,0.5844362]
[1750949134142,0.66624793,107700.0,107690.0,0.5844362]
[1750949134650,0.1896189,107700.0,107690.0,1.29976523]
[1750949134852,0.1896189,107700.0,107690.0,0.6584362]
[1750949135049,0.004,107700.0,107690.0,0.6584362]
[1750949135252,0.1896189,107700.0,107690.0,0.6584362]
[1750949135448,0.1956189,107700.0,107690.0,0.6584362]
[1750949136747,0.1916189,107700.0,107690.0,0.6584362]
[1750949136947,0.90094793,107700.0,107690.0,1.1721962]
[1750949137162,0.97554793,107700.0,107690.0,1.1721962]
[1750949137352,0.99254793,107700.0,107690.0,1.1721962]
[1750949137651,0.73254793,107700.0,107690.0,1.1721962]
[1750949139351,0.69554793,107700.0,107690.0,1.1721962]
[1750949139551,0.3016189,107700.0,107690.0,1.2085962]
[1750949139750,0.3016189,107700.0,107690.0,1.2438962]
[1750949141852,0.65694793,107700.0,107690.0,1.2438962]
[1750949142657,0.3016189,107700.0,107690.0,1.2438962]
[1750949142846,0.65694793,107700.0,107690.0,1.2438962]
[1750949143652,0.65694793,107700.0,107690.0,1.2085962]
[1750949143847,0.69404793,107700.0,107690.0,1.2085962]
[1750949144046,0.69404793,107700.0,107680.0,1.2306341]
[1750949144047,0.1856362,107690.0,107680.0,1.2306341]
[1750949144243,0.57626523,107690.0,107680.0,1.7718723]
[1750949144654,0.61336523,107690.0,107680.0,1.4518723]
[1750949144847,0.61336523,107690.0,107680.0,0.98388]
[1750949145052,0.71336523,107690.0,107680.0,1.1695334]
[1750949145557,0.71336523,107690.0,107680.0,1.1705334]
[1750949145757,0.3580362,107690.0,107680.0,1.1705334]
[1750949145959,0.71336523,107690.0,107680.0,1.1715334]
[1750949146157,0.71336523,107690.0,107680.0,1.1705334]
[1750949146451,0.3580362,107690.0,107680.0,1.21509608]
[1750949146652,0.1856362,107690.0,107680.0,1.57042511]
[1750949146858,0.1856362,107690.0,107680.0,1.60612511]
[1750949147052,0.1856362,107690.0,107680.0,1.60512511]
[1750949147366,0.42822903,107700.0,107690.0,0.1856362]
[1750949147546,0.2213066,107710.0,107700.0,0.1856189]
[1750949147860,0.3985066,107710.0,107700.0,1.1338189]
[1750949148060,0.3985066,107710.0,107700.0,1.2061189]
[1750949149359,0.4005066,107710.0,107700.0,1.2061189]
[1750949149560,0.1792,107710.0,107700.0,1.2061189]
[1750949149767,0.0392,107710.0,107700.0,1.2061189]
[1750949150055,0.0392,107710.0,107700.0,1.2449189]
[1750949150257,0.002,107710.0,107700.0,2.02149524]
[1750949150561,0.002,107710.0,107700.0,2.09474463]
[1750949150952,0.002,107710.0,107700.0,2.02149524]
[1750949151149,0.002,107710.0,107700.0,1.2449189]
[1750949151352,0.002,107710.0,107700.0,1.31816829]
[1750949151553,0.002,107710.0,107700.0,1.73474463]
[1750949151950,0.002,107710.0,107700.0,2.07474463]
[1750949152167,0.002,107710.0,107700.0,1.73474463]
[1750949152362,0.002,107710.0,107700.0,1.80833181]
[1750949152857,0.002,107710.0,107700.0,2.15833181]
[1750949153058,0.002,107710.0,107700.0,1.80833181]
[1750949153360,0.002,107710.0,107700.0,2.17833181]
[1750949154063,0.003,107710.0,107700.0,2.17833181]
[1750949154957,0.003,107710.0,107700.0,1.39175547]
[1750949155155,0.003,107710.0,107700.0,1.53407547]
[1750949155361,0.1886017,107710.0,107700.0,1.46082608]
[1750949155764,0.003,107710.0,107700.0,1.46082608]
[1750949156351,0.003,107710.0,107700.0,1.80082608]
[1750949156560,0.003,107710.0,107700.0,1.87740242]
[1750949157059,0.003,107710.0,107700.0,2.22740242]
[1750949161162,0.003,107710.0,107700.0,2.30065181]
[1750949165862,0.0012,107720.0,107710.0,0.1856017]
[1750949166063,0.001,107720.0,107710.0,1.48202743]
[1750949166472,0.001,107720.0,107710.0,1.40877804]
[1750949166669,0.001,107720.0,107710.0,1.48202743]
[1750949167259,0.0002,107730.0,107720.0,0.1855845]
[1750949167462,0.0372,107740.0,107730.0,0.1855672]
[1750949167463,0.0763,107740.0,107730.0,0.1855672]
[1750949167668,0.31165,107740.0,107730.0,0.5463672]
[1750949168564,0.31865,107740.0,107730.0,0.5463672]
[1750949168770,0.67894047,107740.0,107730.0,0.5463672]
[1750949168967,0.96894047,107740.0,107730.0,1.2756872]
[1750949169362,0.96894047,107740.0,107730.0,0.5463672]
[1750949169669,0.93894047,107740.0,107730.0,1.09008]
[1750949170370,1.000133,107740.0,107730.0,1.09008]
[1750949170569,1.000133,107740.0,107730.0,0.3608]
[1750949170761,1.000133,107740.0,107730.0,0.94752]
[1750949171171,1.000133,107740.0,107730.0,1.1330872]
[1750949172670,1.000133,107740.0,107730.0,0.5463672]
[1750949175573,1.000133,107740.0,107720.0,1.2292246]
[1750949175574,0.1855672,107730.0,107720.0,0.3608]
[1750949175878,0.7429502,107730.0,107720.0,0.7353336]
[1750949176065,1.0729502,107730.0,107720.0,0.7353336]
[1750949177976,1.0779502,107730.0,107720.0,0.7353336]
[1750949178177,0.8679502,107730.0,107720.0,0.7353336]
[1750949178377,0.1855845,107720.0,107710.0,0.80819749]
[1750949178678,0.6766675,107720.0,107710.0,1.3214281]
[1750949179285,0.6766675,107720.0,107710.0,1.39467749]
[1750949179674,0.6786675,107720.0,107710.0,1.39467749]
[1750949179979,0.6786675,107720.0,107710.0,1.3214281]
[1750949180381,0.6786675,107720.0,107710.0,1.39467749]
[1750949180569,0.6816675,107720.0,107710.0,0.80819749]
[1750949181676,0.6816675,107720.0,107710.0,0.43404939]
[1750949181882,0.1856017,107710.0,107700.0,0.07324939]
[1750949182078,0.8725847,107710.0,107700.0,0.25849651]
[1750949182273,0.8725847,107710.0,107700.0,0.61929651]
[1750949182480,0.2211017,107710.0,107700.0,0.9629019]
[1750949182681,0.1443967,107720.0,107710.0,0.1856017]
[1750949182682,0.2738945,107720.0,107710.0,0.1856017]